bitfinex/quotes_SOLUSD_20220227
["timestamp","ask_amount","ask_price","bid_price","bid_amount"]
[1645996597135,7.39934385,84.977,84.883,24.5876]
[1645996597337,7.39934385,84.977,84.884,2.74678921]
[1645996597536,7.45478921,84.976,84.884,2.74678921]
[1645996597738,6.0,84.975,84.883,24.5876]
[1645996597938,117.0,84.974,84.883,24.5876]
[1645996598137,117.0,84.959,84.873,2.74678921]
[1645996598339,117.0,84.957,84.873,2.74678921]
[1645996598637,1.86391298,84.954,84.858,2.74678921]
[1645996598837,117.0,84.939,84.835,21.47714786]
[1645996599041,4.712,84.938,84.835,21.47714786]
[1645996599337,1.69073823,84.936,84.835,21.47714786]
[1645996599536,117.0,84.934,84.835,21.47714786]
[1645996599739,117.0,84.929,84.835,21.47714786]
[1645996599938,118.78231942,84.927,84.812,45.7934]
[1645996600138,1.71123395,84.924,84.812,45.7934]
[1645996600340,1.51414149,84.921,84.812,45.7934]
[1645996600539,1.43777251,84.918,84.812,45.7934]
[1645996600741,1.61193079,84.915,84.812,45.7934]
[1645996600940,1.67488027,84.912,84.813,19.93842026]
[1645996601138,1.69047921,84.909,84.813,19.93842026]
[1645996601340,117.0,84.907,84.78,31.4625]
[1645996601540,117.0,84.907,84.725,18.0505]
[1645996601541,1.44586857,84.904,84.77,13.77]
[1645996601739,1.87174311,84.901,84.75,13.77]
[1645996601939,1.85779426,84.898,84.752,3.10130489]
[1645996602140,10.715,84.9,84.771,28.53858644]
[1645996602141,1.84375626,84.895,84.771,28.53858644]
[1645996602439,1.78326063,84.892,84.781,117.0]
[1645996602638,10.714,84.891,84.783,117.0]
[1645996602941,1.60744241,84.89,84.786,3.55934286]
[1645996603138,7.77990131,84.889,84.801,24.55329501]
[1645996604440,7.77990131,84.889,84.802,6.0]
[1645996604640,1.77990131,84.889,84.803,117.0]
[1645996604841,13.77,84.93,84.803,117.0]
[1645996604842,4.714,84.929,84.811,117.0]
[1645996605041,1.67321596,84.929,84.82,13.77]
[1645996605240,4.712,84.928,84.822,117.0]
[1645996605443,4.712,84.928,84.821,23.2353]
[1645996605661,27.8078501,84.927,84.822,6.73540543]
[1645996605840,121.712,84.926,84.82,13.77]
[1645996606041,1.81050644,84.925,84.789,25.12881247]
[1645996606241,117.0,84.909,84.77,13.77]
[1645996606441,117.0,84.907,84.774,6.0]
[1645996606641,117.0,84.905,84.771,47.3905]
[1645996606843,117.0,84.903,84.771,47.3905]
[1645996607041,38.0401438,84.904,84.771,47.3905]
[1645996607042,117.0,84.899,84.771,47.3905]
[1645996607243,117.0,84.897,84.771,47.3905]
[1645996607542,10.714,84.898,84.75,13.77]
[1645996607543,3.77,84.887,84.75,13.77]
[1645996607742,117.0,84.879,84.743,25.12881247]
[1645996608043,1.705075,84.876,84.743,25.12881247]
[1645996608242,29.31118929,84.873,84.743,25.12881247]
[1645996608444,127.716,84.872,84.744,24.25468517]
[1645996608642,1.64574293,84.871,84.744,24.25468517]
[1645996608843,117.0,84.869,84.745,25.12881247]
[1645996609043,117.0,84.867,84.745,25.12881247]
[1645996609246,117.0,84.865,84.745,25.12881247]
[1645996609444,117.0,84.859,84.744,24.25468517]
[1645996609643,13.77,84.86,84.744,24.25468517]
[1645996609644,117.0,84.857,84.744,24.25468517]
[1645996609845,33.09898983,84.858,84.744,24.25468517]
[1645996609846,117.0,84.855,84.744,24.25468517]
[1645996610044,117.0,84.853,84.744,24.25468517]
[1645996610244,117.0,84.851,84.744,24.25468517]
[1645996610445,117.0,84.849,84.745,2.74678921]
[1645996610647,7.43601591,84.848,84.745,2.74678921]
[1645996610848,7.43601591,84.848,84.745,27.87560168]
[1645996611245,6.0,84.848,84.75,13.77]
[1645996611445,6.0,84.852,84.76,17.6976]
[1645996611651,4.716,84.851,84.761,1.03401527]
[1645996611847,6.0,84.85,84.761,1.03401527]
[1645996612049,7.62584701,84.85,84.761,1.03401527]
[1645996612249,117.0,84.849,84.761,1.03401527]
[1645996612449,117.0,84.847,84.761,1.03401527]
[1645996612648,6.0,84.846,84.761,1.03401527]
[1645996612850,33.61209137,84.844,84.761,1.03401527]
[1645996613047,7.47208517,84.843,84.761,1.03401527]
[1645996613748,7.47208517,84.843,84.731,50.61107517]
[1645996613749,117.0,84.839,84.73,13.77]
[1645996613951,6.0,84.838,84.742,117.0]
[1645996614153,6.0,84.838,84.742,118.78661758]
[1645996614350,33.61209137,84.844,84.744,116.5]
[1645996614550,33.61209137,84.844,84.748,116.5]
[1645996614751,33.61209137,84.844,84.749,8.64573705]
[1645996614949,33.61209137,84.844,84.75,116.5]
[1645996615151,33.61209137,84.844,84.761,116.5]
[1645996615349,33.61209137,84.844,84.764,4.93840877]
[1645996615555,33.61209137,84.844,84.765,6.0]
[1645996615757,33.61209137,84.844,84.764,4.93840877]
[1645996616354,33.61209137,84.844,84.764,2.10431913]
[1645996616554,33.61209137,84.844,84.764,4.85110834]
[1645996617157,1.64828568,84.859,84.764,4.85110834]
[1645996617355,23.9817,84.863,84.765,31.12881247]
[1645996617556,115.84881162,84.97,84.791,117.0]
[1645996617557,1.44367271,84.869,84.791,117.0]
[1645996617861,4.716,84.896,84.8,13.77]
[1645996618054,117.0,84.894,84.801,6.0]
[1645996618254,6.0,84.895,84.801,6.0]
[1645996618255,40.54748735,84.893,84.802,23.18438131]
[1645996618462,40.54748735,84.893,84.81,17.687]
[1645996618463,7.72668974,84.892,84.81,17.687]
[1645996618656,1.72668974,84.892,84.811,6.0]
[1645996618855,1.72668974,84.892,84.811,8.74678921]
[1645996619256,1.72668974,84.892,84.812,2.74678921]
[1645996619455,1.72668974,84.892,84.813,6.0]
[1645996619856,6.0,84.891,84.81,17.687]
[1645996620873,117.0,84.89,84.802,23.18438131]
[1645996621075,7.56332193,84.889,84.802,23.18438131]
[1645996621272,1.56332193,84.889,84.802,23.18438131]
[1645996621472,6.0,84.888,84.802,23.18438131]
[1645996621671,1.56332193,84.889,84.802,23.18438131]
[1645996621872,6.0,84.888,84.802,23.18438131]
[1645996622173,1.84114502,84.886,84.802,23.18438131]
[1645996622372,1.43988748,84.883,84.802,23.18438131]
[1645996622572,6.0,84.882,84.802,23.18438131]
[1645996622775,6.0,84.885,84.802,23.18438131]
[1645996622974,117.0,84.884,84.802,23.18438131]
[1645996623173,6.0,84.883,84.802,23.18438131]
[1645996623578,1.59962123,84.882,84.802,23.18438131]
[1645996623774,117.0,84.88,84.754,2.65154906]
[1645996623975,117.0,84.878,84.76,13.77]
[1645996624175,1.83551398,84.875,84.761,6.0]
[1645996624375,1.85858015,84.872,84.755,6.0]
[1645996624673,117.0,84.868,84.756,19.27838147]
[1645996624875,10.716,84.867,84.757,123.0]
[1645996625074,1.87488888,84.866,84.757,123.0]
[1645996625274,10.716,84.865,84.757,123.0]
[1645996625475,1.79522409,84.864,84.757,117.0]
[1645996625676,6.0,84.863,84.76,13.77]
[1645996625880,6.0,84.863,84.76,31.4665]
[1645996626080,6.0,84.863,84.761,2.70096444]
[1645996626275,123.0,84.863,84.761,2.70096444]
[1645996626475,123.0,84.863,84.76,31.4665]
[1645996626676,6.51657213,84.862,84.761,6.0]
[1645996626876,1.80057213,84.862,84.77,17.6943]
[1645996627076,6.0,84.863,84.771,125.51396001]
[1645996627276,6.0,84.863,84.772,2.73062994]
[1645996627477,1.62122102,84.868,84.773,117.0]
[1645996627478,6.0,84.861,84.773,117.0]
[1645996627677,1.62122102,84.868,84.773,148.12881247]
[1645996627877,1.62122102,84.868,84.773,176.35786438]
[1645996628079,1.62122102,84.868,84.775,117.0]
[1645996628278,26.50929857,84.869,84.781,117.0]
[1645996628477,26.50929857,84.869,84.785,117.0]
[1645996628680,26.50929857,84.869,84.787,117.0]
[1645996628877,4.715,84.892,84.791,117.0]
[1645996629079,1.69536396,84.899,84.793,117.0]
[1645996629278,1.69536396,84.899,84.795,117.0]
[1645996629481,1.69536396,84.899,84.801,117.0]
[1645996629681,1.69536396,84.899,84.803,117.0]
[1645996629886,27.33659065,84.898,84.804,12.88960241]
[1645996630085,1.76518255,84.897,84.81,17.6861]
[1645996630284,6.0,84.896,84.811,6.0]
[1645996631085,6.0,84.896,84.812,117.0]
[1645996631286,1.76518255,84.897,84.813,6.0]
[1645996631684,6.0,84.896,84.813,6.0]
[1645996631886,6.0,84.896,84.811,6.0]
[1645996633189,117.0,84.895,84.792,2.80732716]
[1645996633385,117.0,84.893,84.78,13.77]
[1645996633586,117.0,84.879,84.74,13.77]
[1645996633787,3.5,84.866,84.72,13.77]
[1645996633985,117.0,84.864,84.727,2.74678921]
[1645996634185,117.0,84.862,84.74,17.7]
[1645996634386,10.716,84.861,84.741,117.0]
[1645996634584,1.84476328,84.859,84.743,117.0]
[1645996634784,10.716,84.858,84.744,3.12123032]
[1645996634984,7.51612104,84.857,84.744,3.12123032]
[1645996635186,4.716,84.856,84.75,17.6981]
[1645996635385,6.0,84.855,84.751,6.0]
[1645996635587,6.0,84.855,84.752,117.0]
[1645996635787,4.716,84.854,84.755,21.71240232]
[1645996635987,6.0,84.853,84.756,117.0]
[1645996636189,7.42218883,84.853,84.755,21.71240232]
[1645996636489,8.74678921,84.853,84.755,21.71240232]
[1645996636687,6.1048318,84.852,84.755,21.71240232]
[1645996636887,26.0162325,84.85,84.757,2.35802284]
[1645996637088,26.0162325,84.85,84.762,2.90212585]
[1645996637489,26.0162325,84.85,84.765,2.94182622]
[1645996637889,26.0162325,84.85,84.766,6.0]
[1645996638090,26.0162325,84.85,84.766,2.74678921]
[1645996638289,1.45035843,84.849,84.755,138.71240232]
[1645996638489,6.0,84.848,84.755,21.71240232]
[1645996638690,117.0,84.847,84.755,21.71240232]
[1645996638889,1.73811616,84.844,84.755,21.71240232]
[1645996639092,1.76575837,84.842,84.755,21.71240232]
[1645996639291,19.52655729,84.84,84.755,21.71240232]
[1645996639489,7.7070054,84.839,84.755,21.71240232]
[1645996639689,1.52118226,84.838,84.755,21.71240232]
[1645996639889,36.28249174,84.836,84.755,21.71240232]
[1645996640095,7.6698256,84.835,84.755,21.71240232]
[1645996641593,119.74678921,84.834,84.755,21.71240232]
[1645996641797,123.0,84.833,84.755,21.71240232]
[1645996641992,1.50799702,84.832,84.755,21.71240232]
[1645996642192,1.50799702,84.832,84.756,117.0]
[1645996643197,36.28249174,84.836,84.756,117.0]
[1645996643393,6.0,84.835,84.756,117.0]
[1645996643592,36.28249174,84.836,84.756,117.0]
[1645996643793,4.716,84.859,84.761,117.0]
[1645996643994,0.47619048,102.28,84.764,2.95200459]
[1645996643995,1.527269,84.877,84.764,2.95200459]
[1645996644195,1.527269,84.877,84.765,123.0]
[1645996644393,1.42740174,84.877,84.781,117.0]
[1645996644593,6.0,84.876,84.783,117.0]
[1645996644792,27.56665112,84.875,84.785,117.0]
[1645996644992,6.0,84.874,84.787,117.0]
[1645996645192,6.0,84.874,84.791,117.0]
[1645996645595,17.6933,84.88,84.793,117.0]
[1645996645794,17.6933,84.88,84.795,117.0]
[1645996645995,17.6933,84.88,84.797,117.0]
[1645996646293,17.6933,84.88,84.799,117.0]
[1645996646494,36.96917551,84.879,84.8,27.71240232]
[1645996646698,36.96917551,84.879,84.8,21.71240232]
[1645996646895,1.51177243,84.878,84.8,21.71240232]
[1645996647095,6.0,84.877,84.8,21.71240232]
[1645996647696,6.0,84.877,84.79,13.77]
[1645996647897,1.72828749,84.875,84.77,13.77]
[1645996648098,3.5,84.866,84.734,47.0633]
[1645996648296,3.5,84.846,84.716,112.6]
[1645996648497,3.5,84.836,84.72,13.77]
[1645996648697,117.0,84.834,84.717,30.899032]
[1645996648899,10.718,84.835,84.717,30.899032]
[1645996648900,117.0,84.832,84.717,30.899032]
[1645996649100,130.77,84.83,84.717,30.899032]
[1645996649306,7.67991541,84.829,84.721,117.0]
[1645996649499,10.42670462,84.829,84.721,117.0]
[1645996649699,4.718,84.828,84.721,117.0]
[1645996649899,6.0,84.827,84.723,117.0]
[1645996650197,6.0,84.827,84.722,71.46109375]
[1645996650398,121.718,84.826,84.722,71.46109375]
[1645996650602,1.85801632,84.823,84.723,117.0]
[1645996650803,6.0,84.822,84.723,117.0]
[1645996651007,6.0,84.822,84.723,140.32129375]
[1645996651203,6.0,84.822,84.724,23.32129375]
[1645996651604,6.0,84.822,84.725,117.0]
[1645996652008,1.833215,84.821,84.723,117.0]
[1645996652204,23.7044,84.82,84.723,117.0]
[1645996652503,1.83679784,84.819,84.723,117.0]
[1645996652703,23.78212405,84.818,84.722,48.1398]
[1645996652904,7.53358232,84.817,84.722,48.1398]
[1645996653605,7.53358232,84.817,84.723,117.0]
[1645996654006,4.718,84.845,84.731,119.97439999]
[1645996654207,1.84496331,84.864,84.741,117.0]
[1645996654409,1.84496331,84.864,84.751,117.0]
[1645996654608,1.84496331,84.864,84.761,117.0]
[1645996654807,28.56522896,84.846,84.771,117.0]
[1645996655106,28.56522896,84.846,84.77,13.77]
[1645996655107,1.48143358,84.845,84.77,13.77]
[1645996655311,6.0,84.844,84.764,8.15966844]
[1645996655510,4.716,84.843,84.764,8.15966844]
[1645996655707,6.0,84.842,84.764,8.15966844]
[1645996655910,7.36425907,84.842,84.764,8.15966844]
[1645996656107,117.0,84.841,84.742,23.1486]
[1645996656307,117.0,84.839,84.742,23.1486]
[1645996656509,117.0,84.837,84.742,23.1486]
[1645996656707,117.0,84.835,84.742,23.1486]
[1645996656909,117.0,84.833,84.742,23.1486]
[1645996657108,20.1860706,84.831,84.743,25.86459761]
[1645996657308,6.0,84.83,84.743,25.86459761]
[1645996657607,7.7818313,84.83,84.743,25.86459761]
[1645996657808,117.0,84.829,84.743,25.86459761]
[1645996658009,1.36824982,84.826,84.743,25.86459761]
[1645996658207,6.0,84.825,84.743,25.86459761]
[1645996658408,6.0,84.825,84.744,2.74678921]
[1645996658608,17.6974,84.86,84.744,119.74678921]
[1645996658809,1.67659435,84.873,84.747,2.70217222]
[1645996659008,1.67659435,84.873,84.75,2.45670401]
[1645996659208,6.09922696,84.872,84.76,13.77]
[1645996659412,1.42737447,84.87,84.761,29.2988]
[1645996659609,117.0,84.867,84.762,13.19410283]
[1645996659808,29.1814487,84.868,84.762,13.19410283]
[1645996659809,117.0,84.865,84.762,13.19410283]
[1645996660009,117.0,84.863,84.762,13.19410283]
[1645996660212,117.0,84.859,84.762,13.19410283]
[1645996660411,10.716,84.858,84.762,13.19410283]
[1645996660610,118.44391112,84.857,84.762,13.19410283]
[1645996660811,117.0,84.853,84.762,13.19410283]
[1645996661011,1.55798834,84.85,84.751,23.5684]
[1645996661212,117.0,84.848,84.751,23.5684]
[1645996661412,118.64541262,84.846,84.731,23.3491]
[1645996661612,1.61262441,84.843,84.711,23.995]
[1645996661814,1.63016197,84.84,84.711,23.995]
[1645996662015,7.86039652,84.839,84.715,26.4982973]
[1645996662213,7.86039652,84.839,84.73,13.77]
[1645996662414,7.86039652,84.839,84.731,12.02147696]
[1645996662415,1.86480944,84.837,84.731,12.02147696]
[1645996662614,6.0,84.836,84.731,38.51977426]
[1645996662813,6.0,84.836,84.732,26.4982973]
[1645996663017,1.86480944,84.837,84.734,2.60811101]
[1645996663215,1.56443335,84.837,84.735,6.0]
[1645996663415,1.56443335,84.837,84.735,32.4982973]
[1645996663614,1.56443335,84.837,84.736,2.70732291]
[1645996663917,1.56443335,84.837,84.74,13.77]
[1645996664115,6.0,84.836,84.74,13.77]
[1645996664313,4.716,84.835,84.74,13.77]
[1645996664517,6.0,84.834,84.74,13.77]
[1645996664715,4.716,84.833,84.74,13.77]
[1645996664913,6.0,84.832,84.74,13.77]
[1645996665114,4.716,84.831,84.74,13.77]
[1645996665315,6.0,84.83,84.74,13.77]
[1645996665516,7.57825714,84.83,84.74,13.77]
[1645996665720,6.0,84.83,84.74,13.77]
[1645996665918,4.716,84.829,84.733,47.5135]
[1645996666326,19.56985086,84.827,84.734,26.4982973]
[1645996666522,19.56985086,84.827,84.734,31.66135527]
[1645996666722,6.0,84.826,84.735,3.05215351]
[1645996666924,6.0,84.826,84.735,29.55045081]
[1645996667127,1.73272786,84.825,84.735,26.4982973]
[1645996667321,4.718,84.824,84.687,17.4104]
[1645996667522,117.0,84.819,84.697,45.2577]
[1645996667722,1.82025968,84.816,84.697,45.2577]
[1645996667923,1.82661727,84.814,84.697,45.2577]
[1645996668122,30.96312402,84.812,84.712,33.2828252]
[1645996668421,1.54270263,84.81,84.712,33.2828252]
[1645996668623,1.54270263,84.81,84.697,45.2577]
[1645996668624,6.0,84.809,84.697,45.2577]
[1645996668822,28.806,84.809,84.697,45.2577]
[1645996669022,6.20656899,84.808,84.697,45.2577]
[1645996669226,6.0,84.807,84.698,2.74678921]
[1645996669450,4.719,84.806,84.7,13.77]
[1645996669631,7.6706246,84.805,84.7,13.77]
[1645996669828,6.25723144,84.804,84.7,13.77]
[1645996670027,7.42432412,84.803,84.7,13.77]
[1645996670230,6.08480324,84.802,84.7,13.77]
[1645996670426,7.80832411,84.801,84.7,13.77]
[1645996670627,19.56985086,84.799,84.7,13.77]
[1645996670827,1.51687116,84.797,84.7,13.77]
[1645996671030,1.67404009,84.795,84.7,13.77]
[1645996671229,6.0,84.794,84.7,13.77]
[1645996671827,1.74734493,84.792,84.7,13.77]
[1645996672028,1.65330218,84.789,84.665,21.95131961]
[1645996672232,1.65330218,84.789,84.651,46.8842]
[1645996672528,1.36111752,84.786,84.652,6.0]
[1645996672727,117.0,84.784,84.652,6.0]
[1645996672928,10.721,84.785,84.652,6.0]
[1645996672929,117.0,84.779,84.653,36.29697052]
[1645996673131,117.0,84.777,84.654,6.0]
[1645996673328,117.0,84.775,84.654,8.38061305]
[1645996673531,117.0,84.773,84.654,8.38061305]
[1645996673729,7.56801038,84.772,84.654,8.38061305]
[1645996674230,1.56801038,84.772,84.656,117.0]
[1645996674429,1.52788442,84.777,84.658,117.0]
[1645996674732,1.52788442,84.777,84.672,5.45891017]
[1645996674932,1.52788442,84.777,84.675,2.65798431]
[1645996675131,1.5444838,84.774,84.673,4.721]
[1645996675329,1.72170758,84.772,84.672,2.76172992]
[1645996675530,19.56985086,84.77,84.672,2.76172992]
[1645996675730,19.56985086,84.77,84.673,6.0]
[1645996675931,19.56985086,84.77,84.675,2.92745635]
[1645996676133,19.56985086,84.77,84.678,2.97612352]
[1645996676332,22.6437,84.791,84.701,117.0]
[1645996676531,22.6437,84.791,84.71,13.77]
[1645996676736,22.6437,84.791,84.71,19.47]
[1645996677234,30.98636382,84.79,84.711,32.6157625]
[1645996677635,30.98636382,84.79,84.712,117.0]
[1645996677834,23.2839,84.808,84.712,117.0]
[1645996678035,23.2839,84.808,84.714,117.0]
[1645996678234,23.2839,84.808,84.715,2.34336512]
[1645996678435,23.2839,84.808,84.73,13.77]
[1645996678836,35.63162173,84.807,84.731,6.44293794]
[1645996679435,1.41012907,84.806,84.731,6.44293794]
[1645996680436,117.0,84.804,84.731,6.44293794]
[1645996680638,123.0,84.803,84.73,13.77]
[1645996680843,1.45717952,84.802,84.71,19.47]
[1645996681039,121.719,84.801,84.71,5.7]
[1645996681238,117.0,84.799,84.71,5.7]
[1645996681437,117.0,84.797,84.71,5.7]
[1645996681738,1.67289842,84.794,84.71,5.7]
[1645996681939,117.0,84.795,84.71,5.7]
[1645996681940,117.0,84.789,84.71,5.7]
[1645996682139,1.65846702,84.786,84.71,5.7]
[1645996682343,1.70094496,84.783,84.71,5.7]
[1645996682540,1.51086735,84.78,84.71,5.7]
[1645996682741,1.6419563,84.778,84.71,5.7]
[1645996682940,1.36156177,84.775,84.71,5.7]
[1645996683140,1.6105321,84.772,84.71,5.7]
[1645996683340,1.60385828,84.769,84.71,5.7]
[1645996683539,117.0,84.765,84.71,5.7]
[1645996683740,1.5871901,84.762,84.71,5.7]
[1645996684140,6.0,84.761,84.71,5.7]
[1645996684340,117.0,84.76,84.71,5.7]
[1645996684540,17.7193,84.75,84.71,5.7]
[1645996684740,21.16272812,84.749,84.71,5.7]
[1645996685743,117.0,84.748,84.71,5.7]
[1645996685941,117.0,84.746,84.71,5.7]
[1645996686142,117.0,84.744,84.666,24.1135]
[1645996686343,117.0,84.742,84.653,24.3314]
[1645996686545,117.0,84.74,84.653,24.3314]
[1645996686742,117.0,84.738,84.654,29.41398418]
[1645996686943,117.0,84.736,84.654,29.41398418]
[1645996687143,30.93253064,84.735,84.654,29.41398418]
[1645996687345,1.8018679,84.734,84.654,29.41398418]
[1645996687547,1.8018679,84.734,84.654,32.16077339]
[1645996687944,6.0,84.733,84.654,29.41398418]
[1645996688647,7.65423513,84.732,84.654,29.41398418]
[1645996689046,1.65423513,84.732,84.655,2.74678921]
[1645996689646,1.65423513,84.732,84.654,29.41398418]
[1645996690156,17.7193,84.75,84.655,2.74678921]
[1645996690349,1.48623052,84.765,84.657,117.0]
[1645996690548,1.48623052,84.765,84.67,13.77]
[1645996690950,34.81108751,84.748,84.671,15.34471626]
[1645996691548,34.81108751,84.748,84.672,117.0]
[1645996691753,34.81108751,84.748,84.672,2.74678921]
[1645996692147,34.81108751,84.748,84.673,2.74678921]
[1645996692348,34.81108751,84.748,84.671,15.34471626]
[1645996692349,1.60723669,84.746,84.671,15.34471626]
[1645996692548,1.75237369,84.743,84.671,15.34471626]
[1645996692751,1.51805931,84.741,84.671,15.34471626]
[1645996692950,6.0,84.74,84.671,15.34471626]
[1645996693648,117.0,84.739,84.65,13.77]
[1645996693848,117.0,84.739,84.645,20.7504]
[1645996693849,117.0,84.737,84.618,4.722]
[1645996694051,117.0,84.735,84.63,13.77]
[1645996694349,1.48403098,84.732,84.63,13.77]
[1645996694550,1.8025275,84.729,84.64,18.7208085]
[1645996694749,117.0,84.727,84.654,36.06968126]
[1645996694950,117.0,84.725,84.654,36.06968126]
[1645996695153,117.0,84.723,84.654,36.06968126]
[1645996695353,4.723,84.723,84.654,36.06968126]
[1645996695551,2.74678921,84.724,84.654,36.06968126]
[1645996695751,6.0,84.723,84.654,36.06968126]
[1645996696351,117.0,84.727,84.654,36.06968126]
[1645996696553,7.52750735,84.726,84.654,36.06968126]
[1645996696753,1.52750735,84.726,84.654,36.06968126]
[1645996696956,6.0,84.725,84.654,36.06968126]
[1645996697964,6.0,84.728,84.654,36.06968126]
[1645996699577,117.0,84.727,84.64,32.4918085]
[1645996699776,1.81950749,84.724,84.64,0.9981085]
[1645996699981,1.4534644,84.721,84.64,0.9981085]
[1645996700378,1.52308138,84.718,84.64,0.9981085]
[1645996700581,6.0,84.72,84.64,0.9981085]
[1645996700582,117.0,84.714,84.64,0.9981085]
[1645996700779,1.78159616,84.713,84.64,0.9981085]
[1645996700983,117.0,84.711,84.64,0.9981085]
[1645996701180,117.0,84.709,84.64,0.9981085]
[1645996701385,1.50708369,84.706,84.64,0.9981085]
[1645996701580,1.59973839,84.703,84.64,0.9981085]
[1645996701780,117.0,84.699,84.641,27.3265794]
[1645996701979,117.0,84.699,84.64,0.9981085]
[1645996701980,6.0,84.698,84.64,0.9981085]
[1645996702183,7.55158258,84.698,84.64,0.9981085]
[1645996702380,117.0,84.697,84.64,0.9981085]
[1645996702586,1.82207182,84.694,84.64,0.9981085]
[1645996702781,6.0,84.698,84.64,0.9981085]
[1645996702982,1.54288099,84.699,84.64,28.57039593]
[1645996703184,10.58946246,84.7,84.64,28.57039593]
[1645996703382,10.58946246,84.7,84.615,2.74678921]
[1645996703383,1.45002921,84.698,84.615,2.74678921]
[1645996703584,117.0,84.696,84.58,13.77]
[1645996703885,117.0,84.694,84.578,46.51]
[1645996704085,117.0,84.692,84.578,46.51]
[1645996704381,10.725,84.693,84.562,17.6884]
[1645996704382,1.43067356,84.689,84.562,17.6884]
[1645996704583,1.37528647,84.686,84.56,17.7408]
[1645996704783,117.0,84.684,84.557,23.7201]
[1645996705084,117.0,84.669,84.558,17.8894]
[1645996705283,59.1432,84.68,84.541,2.59717652]
[1645996705284,117.0,84.667,84.541,2.59717652]
[1645996705485,117.0,84.659,84.466,12.29960107]
[1645996705685,118.63806856,84.659,84.5,18.0955]
[1645996705883,117.0,84.639,84.5,13.77]
[1645996706084,3.8,84.626,84.5,13.77]
[1645996706284,3.8,84.626,84.483,18.5737]
[1645996706285,117.0,84.624,84.483,0.5]
[1645996706486,117.0,84.619,84.483,0.5]
[1645996706685,117.0,84.617,84.483,0.5]
[1645996706887,117.0,84.615,84.483,0.5]
[1645996707104,95.0,84.608,84.475,23.33246181]
[1645996707295,95.0,84.608,84.454,2.74678921]
[1645996707296,13.77,84.6,84.441,2.19117995]
[1645996707494,3.8,84.576,84.399,2.43755773]
[1645996707696,10.734,84.575,84.422,2.74678921]
[1645996707890,10.734,84.575,84.43,20.22871512]
[1645996708093,26.02333278,84.574,84.43,13.77]
[1645996708296,12.61020051,84.573,84.43,13.77]
[1645996708491,31.5337,84.57,84.43,13.77]
[1645996708694,3.8,84.566,84.43,13.77]
[1645996708891,6.0,84.565,84.43,13.77]
[1645996709097,117.0,84.564,84.431,40.1552355]
[1645996709293,117.0,84.564,84.432,6.0]
[1645996709294,2.05786674,84.563,84.432,6.0]
[1645996709492,2.05786674,84.563,84.432,24.23322655]
[1645996709693,4.733,84.562,84.432,51.01782189]
[1645996709994,1.91123065,84.579,84.433,63.69115522]
[1645996710196,1.99567575,84.588,84.465,5.0]
[1645996710394,2.05382909,84.617,84.48,13.77]
[1645996710698,2.05382909,84.617,84.482,32.74800394]
[1645996710902,4.73,84.616,84.483,6.0]
[1645996711098,2.05382909,84.617,84.483,6.0]
[1645996711099,2.05382909,84.617,84.483,39.65334909]
[1645996711295,20.43858004,84.65,84.484,47.8655571]
[1645996711495,2.0402351,84.661,84.485,53.9134]
[1645996711698,2.0402351,84.661,84.485,84.90662655]
[1645996711998,117.0,84.659,84.486,81.60557286]
[1645996712199,1.95654803,84.658,84.51,17.7424]
[1645996712402,2.74678921,84.66,84.52,13.77]
[1645996712600,2.74678921,84.658,84.53,13.77]
[1645996712798,2.74678921,84.658,84.541,27.69390035]
[1645996713000,4.728,84.657,84.55,13.77]
[1645996713298,1.90687698,84.667,84.55,13.77]